fUSD/lending_fUSD_20251120
["ID","MTS","AMOUNT","RATE_DAILY","PERIOD"]
[394513956,1763656239112,-7332.3554617,0.00016945,2]
[394513958,1763656239123,-2448.28214,0.0001695,2]
[394513960,1763656239135,-500.0,0.00016973,2]
[394513962,1763656239152,-173.99429099,0.00016973,2]
[394513964,1763656239163,-500.0,0.00016973,2]
[394513966,1763656239175,-500.0,0.00016973,2]
[394513968,1763656239186,-115.08330375,0.00016973,2]
[394514049,1763656240003,-384.91669625,0.00016973,2]
[394514051,1763656240013,-166.89958005,0.00016973,2]
[394514053,1763656240022,-185.12983547,0.00016973,2]
[394514055,1763656240031,-1731.98560568,0.00016983,2]
[394514057,1763656240040,-500.0,0.00016999,2]
[394514059,1763656240050,-500.0,0.00016999,2]
[394514061,1763656240060,-500.0,0.00016999,2]
[394514063,1763656240069,-55.08828235,0.00016999,2]
[394514089,1763656240334,-239.90756685,0.00016999,2]
[394514091,1763656240343,-500.0,0.00016999,2]
[394514093,1763656240353,-500.0,0.00016999,2]
[394514095,1763656240362,-500.0,0.00016999,2]
[394514097,1763656240372,-500.0,0.00016999,2]
[394514099,1763656240381,-500.0,0.00016999,2]
[394514101,1763656240391,-500.0,0.00016999,2]
[394514103,1763656240404,-615.25564219,0.00016999,2]
[394514105,1763656240415,-500.0,0.00016999,2]
[394514107,1763656240424,-500.0,0.00016999,2]
[394514109,1763656240434,-618.94371933,0.00016999,2]
[394514111,1763656240444,-325.48212666,0.00016999,2]
[394514113,1763656240454,-178.76424615,0.00016999,2]
[394514115,1763656240464,-749252.85868198,0.00017,2]
[394514117,1763656240475,-250.0,0.00017,2]
[394514120,1763656240485,-114923.42278389,0.00017,2]
[394514121,1763656240495,-150.0,0.00017031,2]
[394514124,1763656240505,-150.0,0.0001704,2]
[394514125,1763656240514,-200.0,0.00017069,2]
[394514128,1763656240524,-797.92,0.00017091,2]
[394514130,1763656240535,-150.0,0.000171,2]
[394514132,1763656240545,-150.0,0.000171,2]
[394514134,1763656240555,-150.0,0.000171,2]
[394514136,1763656240564,-150.0,0.000171,2]
[394514138,1763656240574,-150.0,0.000171,2]
[394514140,1763656240584,-150.0,0.000171,2]
[394514141,1763656240594,-150.0,0.000171,2]
[394514144,1763656240603,-462.0,0.00017103,2]
[394514146,1763656240613,-166.67,0.00017108,2]
[394514148,1763656240623,-16444.55458862,0.00017131,2]
[394514150,1763656240633,-190.6421782,0.00017131,2]
[394514151,1763656240643,-12277.84804399,0.00017131,2]
[394514154,1763656240662,-300.0,0.0001715,2]
[394514156,1763656240672,-462.0,0.00017156,2]
[394514158,1763656240682,-150.0,0.0001716,2]
[394514160,1763656240692,-150.0,0.00017169,2]
[394514162,1763656240702,-462.0,0.00017201,2]
[394514164,1763656240713,-2448.28214,0.0001721,2]
[394514166,1763656240723,-462.0,0.00017216,2]
[394514168,1763656240734,-462.0,0.00017233,2]
[394514170,1763656240745,-9477.0,0.00017233,2]
[394514172,1763656240755,-462.0,0.00017267,2]
[394514174,1763656240766,-150.0,0.0001728,2]
[394514176,1763656240776,-150.0,0.0001728,2]
[394514178,1763656240787,-150.0,0.00017308,2]
[394514180,1763656240797,-16444.55458862,0.00017323,2]
[394514182,1763656240806,-190.6421782,0.00017323,2]
[394514184,1763656240816,-12277.84804399,0.00017323,2]
[394514186,1763656240825,-150.0,0.00017325,2]
[394514188,1763656240836,-150.0,0.00017325,2]
[394514190,1763656240846,-150.0,0.00017325,2]
[394514192,1763656240856,-797.92,0.00017365,2]
[394514194,1763656240867,-500.0,0.00017385,2]
[394514196,1763656240880,-500.0,0.00017385,2]
[394514198,1763656240890,-462.0,0.00017385,2]
[394514200,1763656240907,-150.0,0.000174,2]
[394514202,1763656240918,-150.0,0.000174,2]
[394514204,1763656240929,-150.0,0.000174,2]
[394514206,1763656240939,-462.0,0.00017436,2]
[394514208,1763656240949,-150.0,0.00017446,2]
[394514210,1763656240962,-2448.28214,0.0001745,2]
[394514212,1763656240972,-150.0,0.0001746,2]
[394514214,1763656240982,-1500.0,0.00017468,2]
[394514216,1763656240992,-1300.0,0.000175,6]
[394514218,1763656241001,-477.88929844,0.00017503,2]
[394514220,1763656241012,-16444.55458862,0.00017516,2]
[394514222,1763656241022,-190.6421782,0.00017516,2]
[394514224,1763656241031,-12277.84804399,0.00017516,2]
[394514227,1763656241042,-150.0,0.0001752,2]
[394514229,1763656241052,-500.0,0.00017521,2]
[394514231,1763656241061,-150.0,0.0001755,2]
[394514233,1763656241071,-150.0,0.0001755,2]
[394514235,1763656241083,-150.0,0.0001755,2]
[394514237,1763656241093,-150.0,0.0001755,2]
[394514239,1763656241103,-150.0,0.00017585,2]
[394514241,1763656241114,-446.0,0.00017598,2]
[394514243,1763656241124,-1000.0,0.000176,2]
[394514245,1763656241134,-1600.0,0.000176,6]
[394514247,1763656241143,-462.0,0.00017606,2]
[394514249,1763656241156,-208.02181212,0.0001761,2]
[394514251,1763656241165,-446.0,0.00017627,2]
[394514253,1763656241174,-797.96,0.00017639,2]
[394514255,1763656241184,-150.0,0.0001764,2]
[394514257,1763656241194,-150.0,0.0001764,2]
[394514259,1763656241203,-462.0,0.00017653,2]
[394514261,1763656241212,-462.0,0.00017658,2]
[394514263,1763656241224,-462.0,0.00017661,2]
[394514264,1763656241233,-926.54450684,0.00017665,2]
[394514265,1763656241243,-446.0,0.00017688,2]
[394514266,1763656241252,-2448.28214,0.000177,2]
[394514267,1763656241261,-1186.0,0.000177,2]
[394514268,1763656241270,-1215.0,0.000177,2]
[394514269,1763656241279,-300.0,0.000177,6]
[394514270,1763656241289,-1364.0,0.000177,2]
[394514271,1763656241297,-420.0,0.00017707,2]
[394514272,1763656241306,-420.0,0.00017707,2]
[394514273,1763656241316,-16444.55458862,0.00017708,2]
[394514274,1763656241325,-190.6421782,0.00017708,2]
[394514275,1763656241333,-12277.84804399,0.00017708,2]
[394514276,1763656241342,-1000.0,0.0001771,2]
[394514277,1763656241352,-150.0,0.00017723,2]
[394514279,1763656241361,-9999.99,0.00017728,2]
[394514281,1763656241370,-8872.38,0.00017728,2]
[394514283,1763656241380,-2813.39,0.00017728,2]
[394514285,1763656241391,-1140.63,0.00017728,2]
[394514287,1763656241405,-150.99,0.00017728,2]
[394514289,1763656241415,-208.02181212,0.00017755,2]
[394514291,1763656241429,-150.0,0.0001776,2]
[394514293,1763656241439,-150.0,0.00017775,2]
[394514296,1763656241449,-150.0,0.00017775,2]
[394514298,1763656241459,-150.0,0.00017775,2]
[394514300,1763656241469,-1680.0,0.00017796,2]
[394514302,1763656241479,-300.0,0.000178,6]
[394514304,1763656241488,-2464.0,0.00017803,2]
[394514306,1763656241499,-250.0,0.00017819,2]
[394514308,1763656241509,-363.96324846,0.00017819,2]
[394514310,1763656241518,-250.0,0.00017819,2]
[394514312,1763656241528,-300.0,0.00017819,2]
[394514314,1763656241537,-150.0,0.0001782,2]
[394514316,1763656241547,-300.0,0.0001782,2]
[394514318,1763656241557,-300.0,0.0001782,2]
[394514320,1763656241567,-300.0,0.0001782,2]
[394514322,1763656241577,-384.33283229,0.0001782,2]
[394514324,1763656241588,-200.0,0.0001782,2]
[394514326,1763656241597,-200.0,0.0001782,2]
[394514328,1763656241608,-200.0,0.0001782,2]
[394514330,1763656241618,-300.0,0.0001782,2]
[394514333,1763656241630,-2464.0,0.00017825,2]
[394514335,1763656241640,-150.0,0.00017862,2]
[394514337,1763656241653,-150.0,0.0001788,2]
[394514339,1763656241663,-250.0,0.00017895,2]
[394514341,1763656241678,-257.61787631,0.00017895,2]
[394514343,1763656241688,-193.0,0.00017895,2]
[394514345,1763656241698,-519.1238,0.000179,2]
[394514347,1763656241708,-208.02181212,0.000179,2]
[394514349,1763656241718,-16444.55458862,0.000179,2]
[394514351,1763656241727,-300.0,0.000179,6]
[394514353,1763656241737,-351.438691,0.000179,2]
[394514355,1763656241747,-351.438691,0.000179,2]
[394514357,1763656241759,-351.438691,0.000179,2]
[394514360,1763656241768,-351.438691,0.000179,2]
[394514362,1763656241779,-190.6421782,0.000179,2]
[394514364,1763656241788,-12277.84804399,0.000179,2]
[394514366,1763656241798,-199.26888936,0.000179,2]
[394514367,1763656241807,-422.65738774,0.000179,2]
[394514369,1763656241817,-500.0,0.000179,2]
[394514372,1763656241827,-446.0,0.00017925,2]
[394514373,1763656241837,-320.22312821,0.00017942,2]
[394514375,1763656241846,-2448.28214,0.0001795,2]
[394514377,1763656241856,-594.91268369,0.00017973,2]
[394514380,1763656241867,-329.13208491,0.00017973,2]
[394514382,1763656241879,-500.31078909,0.00017973,2]
[394514384,1763656241891,-500.0,0.00017973,2]
[394514386,1763656241904,-500.0,0.00017973,2]
[394514388,1763656241914,-500.0,0.00017973,2]
[394514390,1763656241925,-163.67783596,0.00017999,2]
[394514392,1763656241935,-500.0,0.00017999,2]
[394514394,1763656241944,-500.0,0.00017999,2]
[394514396,1763656241956,-300.0,0.00017999,2]
[394514398,1763656241965,-300.0,0.00017999,2]
[394514400,1763656241974,-190.85345636,0.00018,2]
[394514402,1763656241984,-189.05531488,0.00018,2]
[394514404,1763656241994,-233.38262404,0.00018,2]
[394514406,1763656242004,-258.82072033,0.00018,2]
[394514408,1763656242014,-278.08438806,0.00018,2]
[394514410,1763656242024,-150.0,0.00018,2]
[394514412,1763656242035,-201.12127305,0.00018,2]
[394514415,1763656242045,-202.93627182,0.00018,2]
[394514417,1763656242055,-153.6380904,0.00018,2]
[394514419,1763656242065,-150.57953223,0.00018,2]
[394514421,1763656242075,-227.63886103,0.00018,2]
[394514423,1763656242085,-1104165.26673279,0.00018,2]
[394514440,1763656242246,-4954.76436267,0.00018,2]
[394514445,1763656242284,-1495.78179057,0.00018,2]
[394514447,1763656242297,-614.12919889,0.00018,2]
[394514712,1763656244699,-1332.585,0.00018,2]
[394514715,1763656244713,-1303.70103278,0.00018,2]
[394514717,1763656244726,-3097.759665,0.00018,2]
[394514719,1763656244738,-25790.44458395,0.00018,2]
[394514727,1763656244800,-1418.90700006,0.00018,2]
[394514729,1763656244813,-492.91954602,0.00018,2]
[394514731,1763656244827,-1798.51382248,0.00018,2]
[394514733,1763656244839,-932.87947973,0.00018,2]
[394514736,1763656244850,-2221.173,0.00018,2]
[394514738,1763656244866,-12598.89719254,0.00018,2]
[394514741,1763656244879,-9289.5,0.00018,2]
[394514743,1763656244892,-512.7358596,0.00018,2]
[394514745,1763656244908,-6650.0,0.00018,2]
[394514749,1763656244943,-207.41370764,0.000169,2]
[394514751,1763656244954,-20826.05446533,0.00018,2]
[394514754,1763656244967,-3348.15605001,0.00018,2]
[394514756,1763656244982,-580.0,0.00018,2]
[394514759,1763656244995,-499.45632683,0.00018,2]
[394514761,1763656245007,-588.22079071,0.00018,2]
[394514878,1763656246212,-747.19588178,0.00018,2]
[394514888,1763656246928,-4342.14965856,0.00018,2]
[394514889,1763656246940,-404.0,0.00018,2]
[394514890,1763656246952,-622.2216,0.00018,2]
[394514891,1763656246967,-5071.34894111,0.00018,2]
[394514892,1763656247229,-426.85260704,0.00018,2]
[394514893,1763656247241,-2973.848593,0.00018,2]
[394514894,1763656247253,-801.03239126,0.00018,2]
[394514895,1763656247316,-2747.06,0.00018,2]
[394514928,1763656317474,367.7444,0.00016099,2]
[394514935,1763656323886,26693.791,0.0001617,2]
[394514936,1763656335799,5328.3868,0.0001617,2]
[394514941,1763656350315,760000.0,0.00016169,2]
[394514954,1763656366726,1000.0,0.0001617,2]
[394514956,1763656402560,490.32958442,0.00016169,2]
[394514957,1763656518136,-180.0,0.00016268,2]
[394514958,1763656518159,-300.0,0.00016268,2]
[394514959,1763656518181,-1200.0,0.00016268,2]
[394514960,1763656518202,-320.0,0.00016269,2]
[394514961,1763656519021,-180.0,0.00016269,2]
[394514962,1763656519044,-612.83363532,0.00016269,2]
[394514963,1763656519066,-500.0,0.00016269,2]
[394514964,1763656519087,-537.3881987,0.00016269,2]
[394514965,1763656519113,-169.77816598,0.00016269,2]
[394514966,1763656520346,-330.22183402,0.00016269,2]
[394514967,1763656520368,-500.0,0.00016269,2]
[394514968,1763656520390,-500.0,0.00016269,2]
[394514969,1763656520411,-500.0,0.00016269,2]
[394514970,1763656520432,-169.77816598,0.00016269,2]
[394514971,1763656521545,-233.86925825,0.00016269,2]
[394514972,1763656521568,-500.0,0.00016269,2]
[394514973,1763656521596,-500.0,0.00016269,2]
[394514974,1763656521622,-500.0,0.00016269,2]
[394514975,1763656521647,-266.13074175,0.00016269,2]
[394514976,1763656522802,-233.86925825,0.00016269,2]
[394514977,1763656522825,-151.32338748,0.00016269,2]
[394514978,1763656522855,-639.03,0.00016269,2]
[394514979,1763656524121,172.85,0.000134,2]
[394514980,1763656615181,-639.03,0.00016543,2]
[394514981,1763656615208,-155.79,0.00016598,2]
[394514982,1763656615233,-500.0,0.0001665,2]
[394514983,1763656615257,-504.44408651,0.0001665,2]
[394514984,1763656615283,-500.0,0.0001665,2]
[394514985,1763656615310,-534.3613382,0.0001665,2]
[394514986,1763656615335,-500.0,0.0001665,2]
[394514987,1763656615359,-500.0,0.0001665,2]
[394514988,1763656615383,-503.77862628,0.0001665,2]
[394514989,1763656615407,-250.0,0.00016675,2]
[394514990,1763656615430,-604.95520978,0.000167,2]
[394514991,1763656615453,-250.0,0.00016806,2]
[394514992,1763656615477,-639.03,0.00016817,2]
[394514993,1763656615501,-500.0,0.0001685,2]
[394514994,1763656615525,-500.0,0.0001685,2]
[394514995,1763656615550,-500.0,0.00016899,2]
[394514996,1763656615574,-500.0,0.00016938,2]
[394514997,1763656615597,-300.0,0.00016998,2]
[394514998,1763656615636,-500.0,0.00016999,2]
[394514999,1763656615667,-500.0,0.00016999,2]
[394515000,1763656615693,-500.0,0.00016999,2]
[394515001,1763656615719,-500.0,0.00016999,2]
[394515002,1763656615746,-500.0,0.00016999,2]
[394515003,1763656615775,-500.0,0.00016999,2]
[394515004,1763656615807,-500.0,0.00016999,2]
[394515005,1763656615830,-2000.0,0.00017,2]
[394515006,1763656615854,-250.0,0.00017,2]
[394515007,1763656628311,1529.853405,7.945e-05,2]
[394515008,1763656634040,150.0,0.00016839,2]
[394515009,1763656637503,164.06846756,0.00013,7]
[394515010,1763656639394,688.0,0.00013699,2]
[394515011,1763656641762,8055.1851308,0.00016764,2]
[394515012,1763656680402,1374.0,0.00016593,2]
[394515013,1763656684384,500.0,0.00016899,2]
[394515014,1763656688658,8407.50373587,0.00016832,2]
[394515015,1763656691881,-150.0,0.00018,6]
[394515016,1763656699583,500.0,0.00016269,2]
[394515017,1763656699831,302.92735427,0.00016269,2]
[394515018,1763656723813,150.0,0.00016782,120]
[394515034,1763656772316,-197.07264573,0.00016269,2]
[394515035,1763656772338,-366.31333729,0.00016269,2]
[394515036,1763656772359,-150.0,0.00016782,2]
[394515037,1763656772381,-5703.34401698,0.00016832,2]
[394515046,1763656868352,-3802.19,0.00016438,2]
[394515047,1763657059218,367.77782093,0.000164,2]
[394515055,1763657106380,150.0,0.000162,2]
[394515056,1763657106482,150.0,0.00016286,2]
[394515057,1763657106583,150.0,0.00016371,2]
[394515058,1763657106653,150.0,0.00016457,2]
[394515059,1763657108218,150.0,0.000162,2]
[394515060,1763657108477,150.0,0.00016306,2]
[394515061,1763657108735,150.0,0.00016412,2]
[394515062,1763657110141,150.0,0.000162,2]
[394515063,1763657110218,150.0,0.000165,2]
[394515064,1763657110561,150.67505042,0.000162,2]
[394515065,1763657113045,150.82227777,0.000162,2]
[394515066,1763657113857,999.0,0.00016433,3]
[394515067,1763657114598,150.0,0.000162,2]
[394515068,1763657114676,150.0,0.00016272,2]
[394515069,1763657114708,150.0,0.00016344,2]
[394515070,1763657114756,150.0,0.00016416,2]
[394515071,1763657114827,150.0,0.00016488,2]
[394515072,1763657118300,150.0,0.000162,2]
[394515073,1763657118359,150.0,0.00016338,2]
[394515074,1763657118440,150.0,0.00016477,2]
[394515075,1763657124945,150.0,0.000162,2]
[394515076,1763657125107,150.0,0.00016306,2]
[394515077,1763657125457,150.0,0.00016412,2]
[394515078,1763657126631,150.0,0.000162,2]
[394515079,1763657127099,150.0,0.000162,2]
[394515080,1763657130151,833.88,0.00016284,2]
[394515081,1763657133064,150.0,0.000162,2]
[394515082,1763657133102,150.0,0.000165,2]
[394515083,1763657133701,150.0,0.000162,2]
[394515084,1763657139207,150.0,0.000162,2]
[394515085,1763657139279,150.0,0.00016457,2]
[394515086,1763657139748,150.0,0.000162,2]
[394515087,1763657139792,150.0,0.0001638,2]
[394515088,1763657184546,150.0,0.00016259,2]
[394515100,1763657375438,9195.65485088,0.00016,2]
[394515101,1763657375462,238665.62902167,0.00016,2]
[394515102,1763657395575,166.66,0.00015433,2]
[394515103,1763657395800,166.66,0.00015757,2]
[394515104,1763657396009,166.66,0.00016082,2]
[394515112,1763657432086,-166.66,0.00016407,2]
[394515113,1763657432097,-150.0,0.00016518,2]
[394515114,1763657432106,-150.0,0.00016518,2]
[394515115,1763657432116,-300.0,0.0001653,2]
[394515116,1763657432125,-250.0,0.0001653,2]
[394515117,1763657432136,-150.0,0.00016543,2]
[394515119,1763657432155,-150.0,0.0001656,2]
[394515121,1763657432166,-150.0,0.0001656,2]
[394515123,1763657432177,-300.0,0.00016566,2]
[394515124,1763657432187,-300.0,0.00016566,2]
[394515125,1763657432196,-250.0,0.00016566,2]
[394515126,1763657432211,-1200.0,0.00016592,2]
[394515127,1763657432221,-1852.42,0.00016593,2]
[394515128,1763657432231,-153.53,0.00016593,2]
[394515129,1763657432241,-150.0,0.00016615,2]
[394515130,1763657432251,-150.0,0.00016624,2]
[394515131,1763657432262,-150.0,0.00016624,2]
[394515132,1763657432275,-300.0,0.00016625,2]
[394515133,1763657432285,-300.0,0.00016625,2]
[394515134,1763657432295,-1500.0,0.00016626,2]
[394515135,1763657432305,-150.0,0.00016629,2]
[394515136,1763657432316,-150.0,0.00016632,2]
[394515137,1763657432326,-2001.1261311,0.0001666,2]
[394515138,1763657432337,-300.0,0.00016671,2]
[394515139,1763657432348,-1200.0,0.00016672,2]
[394515140,1763657432359,-4436.6336309,0.00016688,2]
[394515141,1763657432369,-150.0,0.00016704,2]
[394515142,1763657432379,-446.0,0.00016707,2]
[394515143,1763657432389,-150.0,0.00016714,2]
[394515144,1763657432398,-150.0,0.00016714,2]
[394515145,1763657432408,-150.0,0.00016729,2]
[394515146,1763657432418,-150.0,0.00016729,2]
[394515147,1763657432428,-166.66,0.00016732,2]
[394515148,1763657432437,-150.0,0.0001674,2]
[394515149,1763657432447,-150.0,0.00016754,2]
[394515150,1763657432459,-3589.27,0.00016766,2]
[394515151,1763657432469,-150.0,0.00016776,2]
[394515153,1763657432480,-150.0,0.000168,2]
[394515155,1763657432494,-150.0,0.000168,2]
[394515158,1763657432503,-150.0,0.000168,2]
[394515159,1763657432513,-550.0,0.000168,2]
[394515160,1763657432526,-383.42,0.00016821,2]
[394515161,1763657432537,-500.0,0.00016821,2]
[394515163,1763657432546,-500.0,0.00016821,2]
[394515166,1763657432556,-500.0,0.00016821,2]
[394515169,1763657432566,-500.0,0.00016821,2]
[394515170,1763657432575,-500.0,0.00016821,2]
[394515171,1763657432584,-500.0,0.00016821,2]
[394515172,1763657432594,-151.0,0.00016821,2]
[394515173,1763657432604,-500.0,0.00016821,2]
[394515174,1763657432614,-158.21369101,0.00016821,2]
[394515175,1763657432624,-500.0,0.00016821,2]
[394515176,1763657432633,-500.0,0.00016821,2]
[394515177,1763657432643,-500.0,0.00016821,2]
[394515178,1763657432653,-500.0,0.00016821,2]
[394515179,1763657432663,-33218.78224715,0.00016832,2]
[394515180,1763657432673,-150.0,0.00016835,2]
[394515181,1763657432683,-150.0,0.00016835,2]
[394515182,1763657432693,-150.0,0.00016848,2]
[394515183,1763657432702,-500.0,0.00016873,2]
[394515184,1763657432717,-500.0,0.00016873,2]
[394515185,1763657432731,-500.0,0.00016873,2]
[394515186,1763657432741,-500.0,0.00016873,2]
[394515187,1763657432751,-500.0,0.00016873,2]
[394515188,1763657432761,-500.0,0.00016873,2]
[394515189,1763657432771,-501.14255158,0.00016873,2]
[394515190,1763657432781,-500.0,0.00016873,2]
[394515191,1763657432791,-150.0,0.00016886,2]
[394515192,1763657432800,-150.0,0.00016892,2]
[394515193,1763657432810,-150.0,0.0001692,2]
[394515194,1763657432820,-150.0,0.0001692,2]
[394515195,1763657432830,-150.0,0.00016941,2]
[394515196,1763657432840,-150.0,0.00016941,2]
[394515197,1763657432850,-171.346,0.00016966,2]
[394515198,1763657432860,-150.0,0.00016971,2]
[394515199,1763657432870,-150.0,0.00016971,2]
[394515200,1763657432880,-446.0,0.00016979,2]
[394515201,1763657432890,-150.0,0.00016992,2]
[394515202,1763657432899,-2686.319,0.00016993,2]
[394515203,1763657432909,-150.0,0.00017031,2]
[394515204,1763657432923,-446.0,0.00017038,2]
[394515205,1763657432934,-150.0,0.00017047,2]
[394515206,1763657432943,-150.0,0.00017047,2]
[394515207,1763657432953,-166.66,0.00017057,2]
[394515208,1763657432968,-150.0,0.00017057,2]
[394515209,1763657432978,-150.0,0.00017064,2]
[394515210,1763657432988,-383.42,0.00017095,2]
[394515211,1763657432999,-150.0,0.000171,2]
[394515212,1763657433009,-150.0,0.000171,2]
[394515213,1763657433020,-150.0,0.000171,2]
[394515214,1763657433030,-150.0,0.000171,2]
[394515215,1763657433040,-465.0,0.000171,2]
[394515216,1763657433052,-279.0,0.00017103,2]
[394515217,1763657433062,-150.0,0.00017136,2]
[394515218,1763657433073,-150.0,0.00017143,2]
[394515219,1763657433083,-150.0,0.00017153,2]
[394515220,1763657433093,-150.0,0.00017153,2]
[394515221,1763657433103,-150.0,0.00017169,2]
[394515222,1763657433117,-1374.0,0.00017185,2]
[394515223,1763657433128,-150.0,0.00017208,2]
[394515224,1763657433138,-150.0,0.00017229,2]
[394515225,1763657433149,-150.0,0.00017229,2]
[394515226,1763657433160,-200.0,0.0001723,2]
[394515227,1763657433171,-150.0,0.00017259,2]
[394515228,1763657433181,-150.0,0.00017259,2]
[394515229,1763657433193,-150.0,0.0001728,2]
[394515230,1763657433203,-150.0,0.0001728,2]
[394515231,1763657433221,-150.0,0.00017308,2]
[394515232,1763657433231,-150.0,0.00017314,2]
[394515233,1763657433241,-150.0,0.00017352,2]
[394515234,1763657433252,-150.0,0.00017365,2]
[394515235,1763657433264,-150.0,0.00017365,2]
[394515236,1763657433277,-383.42,0.00017369,2]
[394515237,1763657433287,-465.0,0.00017369,2]
[394515238,1763657433297,-150.0,0.000174,2]
[394515239,1763657433308,-150.0,0.000174,2]
[394515240,1763657433318,-150.0,0.000174,2]
[394515241,1763657433328,-546.48826961,0.00017421,2]
[394515242,1763657433338,-500.0,0.00017421,2]
[394515243,1763657433349,-500.0,0.00017421,2]
[394515244,1763657433359,-500.0,0.00017421,2]
[394515245,1763657433368,-1000.0,0.00017421,2]
[394515246,1763657433378,-547.33835293,0.00017421,2]
[394515247,1763657433388,-150.0,0.00017424,2]
[394515248,1763657433397,-150.0,0.00017446,2]
[394515249,1763657433407,-150.0,0.0001746,2]
[394515250,1763657433418,-150.0,0.00017471,2]
[394515251,1763657433427,-150.0,0.00017471,2]
[394515252,1763657433436,-150.0,0.00017486,2]
[394515253,1763657433446,-150.0,0.00017486,2]
[394515254,1763657433462,-150.0,0.00017496,2]
[394515255,1763657433472,-465.0,0.00017499,2]
[394515256,1763657433483,-465.0,0.00017521,2]
[394515257,1763657433497,-150.0,0.00017568,2]
[394515258,1763657433507,-150.0,0.00017571,2]
[394515259,1763657433517,-150.0,0.00017576,2]
[394515260,1763657433527,-150.0,0.00017576,2]
[394515261,1763657433537,-150.0,0.00017585,2]
[394515262,1763657433546,-465.0,0.00017591,2]
[394515263,1763657433556,-465.0,0.00017611,2]
[394515264,1763657433566,-150.0,0.0001764,2]
[394515265,1763657433575,-150.0,0.0001764,2]
[394515266,1763657433584,-383.42,0.00017643,2]
[394515267,1763657433594,-150.0,0.00017657,2]
[394515268,1763657433604,-465.0,0.00017672,2]
[394515269,1763657433613,-150.0,0.00017682,2]
[394515270,1763657433623,-150.0,0.00017682,2]
[394515271,1763657433633,-1366.5571264,0.00017686,2]
[394515272,1763657433643,-465.0,0.00017691,2]
[394515273,1763657433652,-150.0,0.000177,2]
[394515274,1763657433662,-150.0,0.000177,2]
[394515275,1763657433673,-222.41932101,0.00017703,2]
[394515276,1763657433687,-465.0,0.00017709,2]
[394515277,1763657433697,-150.0,0.00017712,2]
[394515278,1763657433709,-150.0,0.00017723,2]
[394515279,1763657433718,-150.0,0.00017743,2]
[394515280,1763657433728,-150.0,0.00017743,2]
[394515281,1763657433737,-155.79,0.00017784,2]
[394515282,1763657433746,-150.0,0.00017784,2]
[394515283,1763657433756,-465.0,0.00017786,2]
[394515284,1763657433766,-150.0,0.00017788,2]
[394515285,1763657433776,-150.0,0.00017788,2]
[394515286,1763657433786,-722.29467877,0.000178,2]
[394515287,1763657433795,-3895.6822,0.000178,2]
[394515288,1763657433806,-3405.2384395,0.000178,2]
[394515289,1763657433815,-716.41326563,0.000178,2]
[394515290,1763657433825,-1586.17714728,0.000178,2]
[394515291,1763657433835,-157.07724859,0.000178,2]
[394515292,1763657433845,-3405.23843948,0.00017811,2]